[Event "EYTCC U12 Open 2019"]
[Site "Pardubice"]
[Date "2019.07.12"]
[Round "2.11"]
[White "Hladky, Tadeas"]
[Black "Gaal, Zsoka"]
[Result "0-1"]
[ECO "B22"]
[WhiteElo "1638"]
[BlackElo "2047"]
[Annotator "NA"]
[PlyCount "74"]
[EventDate "2019.07.11"]
[EventType "swiss"]
[EventCountry "CZE"]
[SourceTitle "playchess.com"]
[Source "ChessBase"]
[SourceQuality "1"]
[WhiteTeam "Czech Republic"]
[BlackTeam "Hungary"]
[WhiteTeamCountry "CZE"]
[BlackTeamCountry "HUN"]
[TimeControl "40/5400+30:1800+30"]

1. e4 {[%emt 0:00:00]} c5 {[%emt 0:00:00]} 2. c3 {[%emt 0:00:00]} d5 {[%emt 0:00:00]} 3. exd5 {[%emt 0:00:00]} Qxd5 {[%emt 0:00:02]} 4. d4 {[%emt 0:00:00]} e6 {[%emt 0:00:17]} 5. Nf3 {[%emt 0:00:00]} Nf6 {[%emt 0:00:21]} 6. Be2 {[%emt 0:00:00]} Nc6 {[%emt 0:00:17]} 7. O-O {[%emt 0:00:00]} cxd4 {[%emt 0:00:24]} 8. cxd4 {[%emt 0:00:06]} Be7 {[%emt 0:00:11]} 9. Nc3 {[%emt 0:00:20]} Qd6 {[%emt 0:00:11]} 10. a3 {[%emt 0:02:49]} O-O {[%emt 0:00:48]} 11. Be3 {[%emt 0:01:38]} b6 {[%emt 0:03:07]} 12. Qd2 {[%emt 0:05:25]} Bb7 {[%emt 0:02:36]} 13. Bf4 {[%emt 0:02:50]} Qd7 {[%emt 0:06:18]} 14. Rfd1 {[%emt 0:08:58]} Rfd8 {[%emt 0:01:51]} 15. Bb5 {[%emt 0:03:36]} a6 {[%emt 0:08:07]} 16. Ne5 {[%emt 0:06:52]} Qe8 {[%emt 0:01:57]} 17. Bxc6 {[%emt 0:04:14]} Bxc6 {[%emt 0:00:32]} 18. Rac1 {[%emt 0:16:04]} Rac8 {[%emt 0:06:31]} 19. Qe2 {[%emt 0:07:27]} Bb7 {[%emt 0:01:56]} 20. f3 {[%emt 0:05:43]} b5 {[%emt 0:03:22]} 21. b4 {[%emt 0:02:36]} Nd5 {[%emt 0:04:33]} 22. Nxd5 {[%emt 0:01:00]} Bxd5 {[%emt 0:00:19]} 23. Qe3 {[%emt 0:02:01]} Bc4 {[%emt 0:11:12]} 24. Nxc4 {[%emt 0:05:17]} bxc4 {[%emt 0:00:15]} 25. Qe2 {[%emt 0:02:47]} Qb5 {[%emt 0:02:18]} 26. Bg3 {[%emt 0:10:01]} a5 {[%emt 0:10:46]} 27. bxa5 {[%emt 0:02:52]} Bxa3 {[%emt 0:07:36]} 28. Ra1 {[%emt 0:00:43]} Bb2 {[%emt 0:01:55]} 29. Rab1 {[%emt 0:00:29]} Bxd4+ {[%emt 0:00:20]} 30. Bf2 {[%emt 0:02:22]} Bxf2+ {[%emt 0:00:35]} 31. Kxf2 {[%emt 0:01:12]} Qxa5 {[%emt 0:01:42]} 32. Rxd8+ {[%emt 0:00:37]} Qxd8 {[%emt 0:00:20]} 33. Rd1 {[%emt 0:00:26]} Qb6+ {[%emt 0:00:15]} 34. Kf1 {[%emt 0:00:05]} g6 {[%emt 0:03:51]} 35. g4 {[%emt 0:02:51]} c3 {[%emt 0:01:05]} 36. Rc1 {[%emt 0:00:30]} c2 {[%emt 0:02:51]} 37. Kg2 {[%emt 0:01:12]} Qb2 {[%emt 0:03:07]} 0-1

[Event "EYTCC U12 Open 2019"]
[Site "Pardubice"]
[Date "2019.07.12"]
[Round "2.12"]
[White "Giang, Tran Nam"]
[Black "Mohapl, Tomas"]
[Result "1-0"]
[ECO "B92"]
[WhiteElo "1931"]
[BlackElo "1585"]
[Annotator "NA"]
[PlyCount "69"]
[EventDate "2019.07.11"]
[EventType "swiss"]
[EventCountry "CZE"]
[SourceTitle "playchess.com"]
[Source "ChessBase"]
[SourceQuality "1"]
[WhiteTeam "Hungary"]
[BlackTeam "Czech Republic"]
[WhiteTeamCountry "HUN"]
[BlackTeamCountry "CZE"]
[TimeControl "40/5400+30:1800+30"]

1. e4 {[%emt 0:00:00]} c5 {[%emt 0:00:00]} 2. Nf3 {[%emt 0:01:22]} d6 {[%emt 0:00:10]} 3. d4 {[%emt 0:01:10]} cxd4 {[%emt 0:01:00]} 4. Nxd4 {[%emt 0:00:45]} Nf6 {[%emt 0:01:07]} 5. Nc3 {[%emt 0:00:26]} a6 {[%emt 0:01:13]} 6. Be2 {[%emt 0:03:21]} e5 {[%emt 0:02:12]} 7. Nb3 {[%emt 0:00:10]} Be6 {[%emt 0:01:32]} 8. f4 {[%emt 0:05:03]} Be7 {[%emt 0:12:25]} 9. f5 {[%emt 0:04:24]} Bd7 {[%emt 0:00:47]} 10. Be3 {[%emt 0:04:24]} Bc6 {[%emt 0:06:09]} 11. Bf3 {[%emt 0:06:50]} Nbd7 {[%emt 0:10:01]} 12. Qe2 {[%emt 0:05:13]} Qc7 {[%emt 0:09:31]} 13. O-O-O {[%emt 0:04:25]} O-O-O {[%emt 0:05:34]} 14. g4 {[%emt 0:03:59]} h6 {[%emt 0:12:49]} 15. h4 {[%emt 0:03:02]} Nh7 {[%emt 0:05:57]} 16. Nd5 {[%emt 0:03:54]} Bxd5 {[%emt 0:00:52]} 17. Rxd5 {[%emt 0:00:17]} Kb8 {[%emt 0:03:55]} 18. Kb1 {[%emt 0:03:34]} Rc8 {[%emt 0:03:52]} 19. Qf2 {[%emt 0:03:19]} Ndf6 {[%emt 0:04:49]} 20. Rd3 {[%emt 0:00:44]} Qc4 {[%emt 0:02:53]} 21. Re1 {[%emt 0:06:42]} Qa4 {[%emt 0:01:17]} 22. g5 {[%emt 0:07:12]} hxg5 {[%emt 0:04:03]} 23. hxg5 {[%emt 0:00:17]} Nd7 {[%emt 0:01:53]} 24. Red1 {[%emt 0:02:44]} Nxg5 {[%emt 0:06:33]} 25. Bxg5 {[%emt 0:00:24]} Bxg5 {[%emt 0:00:03]} 26. Rxd6 {[%emt 0:00:28]} Nf6 {[%emt 0:00:11]} 27. Qb6 {[%emt 0:09:03]} Qb5 {[%emt 0:01:26]} 28. Qg1 {[%emt 0:02:19]} Bh6 {[%emt 0:00:27]} 29. Rb6 {[%emt 0:00:19]} Qe8 {[%emt 0:00:54]} 30. Nc5 {[%emt 0:00:58]} Rxc5 {[%emt 0:00:33]} 31. Qxc5 {[%emt 0:00:02]} Nd7 {[%emt 0:00:10]} 32. Qd6+ {[%emt 0:00:10]} Ka7 {[%emt 0:00:17]} 33. Rxa6+ {[%emt 0:01:15]} bxa6 {[%emt 0:00:24]} 34. Qc7+ {[%emt 0:00:05]} Ka8 {[%emt 0:00:11]} 35. Rxd7 {[%emt 0:00:13]} 1-0

[Event "EYTCC U12 Open 2019"]
[Site "Pardubice"]
[Date "2019.07.12"]
[Round "2.13"]
[White "Cohen, Elad"]
[Black "Finek, Vaclav"]
[Result "1-0"]
[ECO "B76"]
[WhiteElo "2002"]
[BlackElo "2043"]
[Annotator "NA"]
[PlyCount "65"]
[EventDate "2019.07.11"]
[EventType "swiss"]
[EventCountry "CZE"]
[SourceTitle "playchess.com"]
[Source "ChessBase"]
[SourceQuality "1"]
[WhiteTeam "Israel"]
[BlackTeam "Czech Republic"]
[WhiteTeamCountry "ISR"]
[BlackTeamCountry "CZE"]
[TimeControl "40/5400+30:1800+30"]

1. e4 {[%emt 0:00:00]} c5 {[%emt 0:00:00]} 2. Nf3 {[%emt 0:00:00]} d6 {[%emt 0:00:00]} 3. d4 {[%emt 0:00:17]} cxd4 {[%emt 0:00:00]} 4. Nxd4 {[%emt 0:00:24]} Nf6 {[%emt 0:00:00]} 5. Nc3 {[%emt 0:00:26]} g6 {[%emt 0:00:00]} 6. Be3 {[%emt 0:00:31]} Bg7 {[%emt 0:00:03]} 7. f3 {[%emt 0:00:21]} O-O {[%emt 0:00:07]} 8. Qd2 {[%emt 0:00:09]} Nc6 {[%emt 0:00:08]} 9. O-O-O {[%emt 0:00:22]} Bd7 {[%emt 0:00:12]} 10. Kb1 {[%emt 0:00:47]} Rc8 {[%emt 0:03:03]} 11. g4 {[%emt 0:02:20]} a6 {[%emt 0:14:27]} 12. h4 {[%emt 0:06:57]} b5 {[%emt 0:02:33]} 13. h5 {[%emt 0:05:10]} b4 {[%emt 0:05:29]} 14. Nd5 {[%emt 0:06:04]} Nxd5 {[%emt 0:22:38]} 15. exd5 {[%emt 0:03:55]} Nxd4 {[%emt 0:06:59]} 16. Bxd4 {[%emt 0:00:16]} Bxd4 {[%emt 0:04:57]} 17. Qxd4 {[%emt 0:00:24]} Qa5 {[%emt 0:07:01]} 18. Bd3 {[%emt 0:18:37]} e5 {[%emt 0:02:13]} 19. Qe3 {[%emt 0:13:46]} Bb5 {[%emt 0:10:39]} 20. hxg6 {[%emt 0:09:35]} fxg6 {[%emt 0:00:09]} 21. Bxg6 {[%emt 0:01:49]} hxg6 {[%emt 0:00:59]} 22. Rh8+ {[%emt 0:00:38]} Kf7 {[%emt 0:02:12]} 23. Rh7+ {[%emt 0:00:34]} Ke8 {[%emt 0:03:00]} 24. Qg5 {[%emt 0:01:01]} Qc7 {[%emt 0:02:06]} 25. Rxc7 {[%emt 0:01:11]} Rxc7 {[%emt 0:00:09]} 26. Qxg6+ {[%emt 0:00:20]} Rcf7 {[%emt 0:00:21]} 27. Qxd6 {[%emt 0:00:39]} Rxf3 {[%emt 0:00:29]} 28. Qxe5+ {[%emt 0:00:15]} Kd7 {[%emt 0:00:15]} 29. b3 {[%emt 0:00:32]} Re8 {[%emt 0:00:17]} 30. Qd4 {[%emt 0:01:27]} Rfe3 {[%emt 0:00:26]} 31. Qa7+ {[%emt 0:00:15]} Kd6 {[%emt 0:00:09]} 32. Qb6+ {[%emt 0:00:14]} Kd7 {[%emt 0:00:14]} 33. d6 {[%emt 0:00:16]} 1-0

[Event "EYTCC U12 Open 2019"]
[Site "Pardubice"]
[Date "2019.07.12"]
[Round "2.14"]
[White "Nemec, Jachym"]
[Black "Vagman, Roy"]
[Result "1-0"]
[ECO "D85"]
[WhiteElo "1927"]
[BlackElo "1941"]
[Annotator "NA"]
[PlyCount "97"]
[EventDate "2019.07.11"]
[EventType "swiss"]
[EventCountry "CZE"]
[SourceTitle "playchess.com"]
[Source "ChessBase"]
[SourceQuality "1"]
[WhiteTeam "Czech Republic"]
[BlackTeam "Israel"]
[WhiteTeamCountry "CZE"]
[BlackTeamCountry "ISR"]
[TimeControl "40/5400+30:1800+30"]

1. d4 {[%emt 0:00:00]} Nf6 {[%emt 0:00:00]} 2. c4 {[%emt 0:00:00]} g6 {[%emt 0:00:07]} 3. Nc3 {[%emt 0:00:13]} d5 {[%emt 0:00:29]} 4. cxd5 {[%emt 0:00:16]} Nxd5 {[%emt 0:00:28]} 5. e4 {[%emt 0:00:17]} Nxc3 {[%emt 0:00:27]} 6. bxc3 {[%emt 0:00:12]} Bg7 {[%emt 0:00:20]} 7. Nf3 {[%emt 0:00:16]} c5 {[%emt 0:00:28]} 8. Rb1 {[%emt 0:00:10]} O-O {[%emt 0:01:31]} 9. Be2 {[%emt 0:00:17]} b6 {[%emt 0:00:57]} 10. Be3 {[%emt 0:02:55]} Bb7 {[%emt 0:01:40]} 11. Qc2 {[%emt 0:03:34]} Qc7 {[%emt 0:02:47]} 12. d5 {[%emt 0:01:09]} Nd7 {[%emt 0:06:07]} 13. O-O {[%emt 0:00:30]} Rae8 {[%emt 0:08:14]} 14. Nd2 {[%emt 0:08:51]} e6 {[%emt 0:09:05]} 15. c4 {[%emt 0:01:10]} exd5 {[%emt 0:00:05]} 16. cxd5 {[%emt 0:02:01]} Bc8 {[%emt 0:08:19]} 17. Bb5 {[%emt 0:13:56]} Rd8 {[%emt 0:06:25]} 18. a4 {[%emt 0:04:35]} Nf6 {[%emt 0:03:00]} 19. h3 {[%emt 0:03:55]} Nh5 {[%emt 0:01:38]} 20. Nc4 {[%emt 0:02:54]} f5 {[%emt 0:10:04]} 21. d6 {[%emt 0:10:14]} Qf7 {[%emt 0:04:46]} 22. Bg5 {[%emt 0:00:20]} Bf6 {[%emt 0:07:37]} 23. Bh6 {[%emt 0:03:23]} Bg7 {[%emt 0:03:08]} 24. Bxg7 {[%emt 0:00:57]} Qxg7 {[%emt 0:00:18]} 25. e5 {[%emt 0:00:44]} f4 {[%emt 0:00:58]} 26. Bc6 {[%emt 0:05:18]} Be6 {[%emt 0:02:33]} 27. Bf3 {[%emt 0:00:49]} Kh8 {[%emt 0:01:34]} 28. Rfe1 {[%emt 0:00:15]} Qh6 {[%emt 0:02:03]} 29. a5 {[%emt 0:04:32]} Qg5 {[%emt 0:01:54]} 30. Kh2 {[%emt 0:00:21]} Ng7 {[%emt 0:02:07]} 31. axb6 {[%emt 0:02:18]} axb6 {[%emt 0:00:44]} 32. Nxb6 {[%emt 0:00:36]} Nf5 {[%emt 0:00:40]} 33. Qxc5 {[%emt 0:00:19]} Nh4 {[%emt 0:00:32]} 34. Qc3 {[%emt 0:01:00]} Qh6 {[%emt 0:02:29]} 35. Bd5 {[%emt 0:02:22]} Qg5 {[%emt 0:06:13]} 36. Rg1 {[%emt 0:01:34]} Bxd5 {[%emt 0:01:24]} 37. Nxd5 {[%emt 0:00:25]} Rc8 {[%emt 0:00:33]} 38. Qb2 {[%emt 0:02:22]} Kg7 {[%emt 0:03:37]} 39. d7 {[%emt 0:01:33]} Rcd8 {[%emt 0:02:02]} 40. e6+ {[%emt 0:07:31]} Kh6 {[%emt 0:00:48]} 41. Qd4 {[%emt 0:30:31]} f3 {[%emt 0:12:52]} 42. Qg4 {[%emt 0:00:00]} Qe5+ {[%emt 0:03:01]} 43. Qg3 {[%emt 0:00:00]} Qxg3+ {[%emt 0:01:35]} 44. fxg3 {[%emt 0:00:00]} Nf5 {[%emt 0:01:33]} 45. g4 {[%emt 0:00:00]} f2 {[%emt 0:02:56]} 46. Rgf1 {[%emt 0:00:00]} Rh8 {[%emt 0:02:30]} 47. gxf5 {[%emt 0:00:00]} gxf5 {[%emt 0:00:02]} 48. Nb6 {[%emt 0:00:00]} f4 {[%emt 0:00:47]} 49. e7 {[%emt 0:00:00]} 1-0

[Event "EYTCC U12 Open 2019"]
[Site "Pardubice"]
[Date "2019.07.12"]
[Round "2.15"]
[White "Uritsky, Yonathan"]
[Black "Brozka, Karel"]
[Result "0-1"]
[ECO "B10"]
[WhiteElo "2040"]
[BlackElo "1816"]
[Annotator "NA"]
[PlyCount "90"]
[EventDate "2019.07.11"]
[EventType "swiss"]
[EventCountry "CZE"]
[SourceTitle "playchess.com"]
[Source "ChessBase"]
[SourceQuality "1"]
[WhiteTeam "Israel"]
[BlackTeam "Czech Republic"]
[WhiteTeamCountry "ISR"]
[BlackTeamCountry "CZE"]
[TimeControl "40/5400+30:1800+30"]

1. e4 {[%emt 0:00:00]} c6 {[%emt 0:00:00]} 2. Nc3 {[%emt 0:00:21]} d5 {[%emt 0:00:01]} 3. Nf3 {[%emt 0:00:22]} dxe4 {[%emt 0:00:24]} 4. Nxe4 {[%emt 0:00:18]} Nd7 {[%emt 0:00:10]} 5. d4 {[%emt 0:03:27]} Ngf6 {[%emt 0:00:10]} 6. Ng3 {[%emt 0:01:25]} h5 {[%emt 0:02:11]} 7. h3 {[%emt 0:06:46]} e6 {[%emt 0:01:06]} 8. Bd3 {[%emt 0:01:35]} Bd6 {[%emt 0:00:54]} 9. Ne2 {[%emt 0:01:56]} Qc7 {[%emt 0:00:57]} 10. c4 {[%emt 0:04:47]} c5 {[%emt 0:04:12]} 11. O-O {[%emt 0:08:16]} b6 {[%emt 0:01:07]} 12. Nc3 {[%emt 0:01:44]} a6 {[%emt 0:02:31]} 13. Re1 {[%emt 0:05:14]} O-O {[%emt 0:01:18]} 14. Ne4 {[%emt 0:04:21]} Nxe4 {[%emt 0:05:59]} 15. Bxe4 {[%emt 0:00:41]} Bb7 {[%emt 0:00:39]} 16. Bxb7 {[%emt 0:07:26]} Qxb7 {[%emt 0:00:42]} 17. Ne5 {[%emt 0:02:02]} cxd4 {[%emt 0:02:36]} 18. Nxd7 {[%emt 0:02:10]} Qxd7 {[%emt 0:00:09]} 19. Qxh5 {[%emt 0:02:48]} Qc6 {[%emt 0:02:15]} 20. Qe2 {[%emt 0:03:10]} Rac8 {[%emt 0:04:46]} 21. b3 {[%emt 0:01:46]} Rfd8 {[%emt 0:02:02]} 22. Qd3 {[%emt 0:01:27]} b5 {[%emt 0:08:09]} 23. cxb5 {[%emt 0:01:24]} Qxb5 {[%emt 0:02:49]} 24. Rd1 {[%emt 0:05:55]} Qxd3 {[%emt 0:03:17]} 25. Rxd3 {[%emt 0:00:09]} e5 {[%emt 0:00:20]} 26. f3 {[%emt 0:06:23]} Rc2 {[%emt 0:01:19]} 27. Kf1 {[%emt 0:14:33]} Rdc8 {[%emt 0:01:32]} 28. Bd2 {[%emt 0:01:32]} f6 {[%emt 0:04:48]} 29. a3 {[%emt 0:02:10]} Kf7 {[%emt 0:01:26]} 30. Ke2 {[%emt 0:02:51]} Ke6 {[%emt 0:02:20]} 31. Kd1 {[%emt 0:01:12]} Kd5 {[%emt 0:02:11]} 32. Rc1 {[%emt 0:01:01]} Rxc1+ {[%emt 0:02:10]} 33. Bxc1 {[%emt 0:00:03]} f5 {[%emt 0:02:08]} 34. Bb2 {[%emt 0:01:01]} Bc5 {[%emt 0:00:22]} 35. Kd2 {[%emt 0:03:44]} Rc6 {[%emt 0:01:55]} 36. Ke1 {[%emt 0:01:33]} Rg6 {[%emt 0:02:03]} 37. g4 {[%emt 0:00:43]} e4 {[%emt 0:01:52]} 38. fxe4+ {[%emt 0:00:32]} fxe4 {[%emt 0:00:13]} 39. Rg3 {[%emt 0:00:21]} Bd6 {[%emt 0:02:11]} 40. Rg1 {[%emt 0:00:37]} e3 {[%emt 0:00:38]} 41. Ke2 {[%emt 0:30:40]} Ke4 {[%emt 0:30:24]} 42. Bxd4 {[%emt 0:00:21]} Kxd4 {[%emt 0:00:10]} 43. Rd1+ {[%emt 0:00:05]} Ke4 {[%emt 0:00:17]} 44. Rd3 {[%emt 0:00:21]} Bc5 {[%emt 0:00:11]} 45. b4 {[%emt 0:00:08]} Bd4 {[%emt 0:00:05]} 0-1

[Event "EYTCC U12 Open 2019"]
[Site "Pardubice"]
[Date "2019.07.12"]
[Round "2.16"]
[White "Janous, Marek"]
[Black "Tsirilman, Guy"]
[Result "0-1"]
[ECO "B94"]
[WhiteElo "1717"]
[BlackElo "1792"]
[Annotator "NA"]
[PlyCount "114"]
[EventDate "2019.07.11"]
[EventType "swiss"]
[EventCountry "CZE"]
[SourceTitle "playchess.com"]
[Source "ChessBase"]
[SourceQuality "1"]
[WhiteTeam "Czech Republic"]
[BlackTeam "Israel"]
[WhiteTeamCountry "CZE"]
[BlackTeamCountry "ISR"]
[TimeControl "40/5400+30:1800+30"]

1. e4 {[%emt 0:00:00]} c5 {[%emt 0:00:00]} 2. Nf3 {[%emt 0:00:00]} d6 {[%emt 0:01:37]} 3. d4 {[%emt 0:00:00]} cxd4 {[%emt 0:01:41]} 4. Nxd4 {[%emt 0:00:16]} Nf6 {[%emt 0:01:35]} 5. Nc3 {[%emt 0:00:41]} a6 {[%emt 0:02:41]} 6. Bg5 {[%emt 0:00:28]} Nbd7 {[%emt 0:00:36]} 7. f4 {[%emt 0:00:34]} Qc7 {[%emt 0:00:39]} 8. Qf3 {[%emt 0:01:43]} h6 {[%emt 0:01:19]} 9. Bxf6 {[%emt 0:01:22]} Nxf6 {[%emt 0:02:30]} 10. h3 {[%emt 0:01:03]} b5 {[%emt 0:06:01]} 11. e5 {[%emt 0:32:34]} Bb7 {[%emt 0:09:11]} 12. exd6 {[%emt 0:04:31]} Bxf3 {[%emt 0:07:40]} 13. dxc7 {[%emt 0:00:09]} Bb7 {[%emt 0:04:48]} 14. O-O-O {[%emt 0:00:14]} e6 {[%emt 0:00:50]} 15. Nb3 {[%emt 0:06:44]} Bb4 {[%emt 0:07:38]} 16. Ne2 {[%emt 0:04:10]} O-O {[%emt 0:06:13]} 17. a3 {[%emt 0:03:51]} Be7 {[%emt 0:00:09]} 18. Na5 {[%emt 0:00:41]} Bd5 {[%emt 0:00:40]} 19. Nc3 {[%emt 0:10:34]} Bd6 {[%emt 0:04:29]} 20. Nxd5 {[%emt 0:00:39]} Nxd5 {[%emt 0:00:37]} 21. g3 {[%emt 0:01:14]} Bxc7 {[%emt 0:11:24]} 22. Nb3 {[%emt 0:01:27]} g5 {[%emt 0:01:18]} 23. fxg5 {[%emt 0:16:26]} hxg5 {[%emt 0:00:37]} 24. Rd3 {[%emt 0:03:17]} f5 {[%emt 0:04:10]} 25. Bg2 {[%emt 0:00:44]} Rad8 {[%emt 0:00:12]} 26. Nc5 {[%emt 0:00:18]} Kf7 {[%emt 0:02:05]} 27. Rf1 {[%emt 0:04:21]} Nf6 {[%emt 0:07:41]} 28. Rb3 {[%emt 0:01:26]} Nh5 {[%emt 0:02:30]} 29. Nxa6 {[%emt 0:00:40]} Bxg3 {[%emt 0:00:37]} 30. Rxb5 {[%emt 0:00:26]} Nf4 {[%emt 0:01:24]} 31. Bf3 {[%emt 0:01:30]} Nxh3 {[%emt 0:00:59]} 32. Nc5 {[%emt 0:00:45]} g4 {[%emt 0:01:08]} 33. Be2 {[%emt 0:00:51]} Bf4+ {[%emt 0:01:44]} 34. Kb1 {[%emt 0:00:05]} g3 {[%emt 0:02:00]} 35. Bf3 {[%emt 0:00:52]} Rd2 {[%emt 0:00:59]} 36. Nd3 {[%emt 0:00:48]} Bd6 {[%emt 0:01:31]} 37. Ne1 {[%emt 0:02:15]} Nf4 {[%emt 0:00:51]} 38. Rg1 {[%emt 0:00:40]} Rg8 {[%emt 0:01:06]} 39. Rb7+ {[%emt 0:00:18]} Kf6 {[%emt 0:00:17]} 40. Ng2 {[%emt 0:00:27]} Bc5 {[%emt 0:01:30]} 41. Nxf4 {[%emt 0:30:36]} Bxg1 {[%emt 0:30:08]} 42. Nh5+ {[%emt 0:00:26]} Kg5 {[%emt 0:00:56]} 43. Rb3 {[%emt 0:00:34]} Bh2 {[%emt 0:01:01]} 44. Nxg3 {[%emt 0:00:00]} Bxg3 {[%emt 0:00:00]} 45. a4 {[%emt 0:00:00]} e5 {[%emt 0:00:00]} 46. Bd5 {[%emt 0:00:00]} Rd8 {[%emt 0:00:00]} 47. Rxg3+ {[%emt 0:00:00]} Kh4 {[%emt 0:00:00]} 48. Rf3 {[%emt 0:00:00]} R8xd5 {[%emt 0:00:00]} 49. Rxf5 {[%emt 0:00:00]} Kg4 {[%emt 0:00:00]} 50. Rf8 {[%emt 0:00:00]} e4 {[%emt 0:00:00]} 51. c4 {[%emt 0:00:00]} R5d4 {[%emt 0:00:00]} 52. c5 {[%emt 0:00:00]} Rb4 {[%emt 0:00:00]} 53. c6 {[%emt 0:00:00]} Rbxb2+ {[%emt 0:00:00]} 54. Ka1 {[%emt 0:00:00]} Rbc2 {[%emt 0:00:00]} 55. Kb1 {[%emt 0:00:00]} Rxc6 {[%emt 0:00:00]} 56. Rf7 {[%emt 0:00:00]} e3 {[%emt 0:00:00]} 57. Re7 {[%emt 0:00:00]} Rh6 {[%emt 0:00:00]} 0-1

[Event "EYTCC U12 Open 2019"]
[Site "Pardubice"]
[Date "2019.07.12"]
[Round "2.17"]
[White "Herega, Nejc"]
[Black "Tarhan, Adar"]
[Result "1-0"]
[ECO "D35"]
[WhiteElo "1939"]
[BlackElo "1972"]
[Annotator "NA"]
[PlyCount "115"]
[EventDate "2019.07.11"]
[EventType "swiss"]
[EventCountry "CZE"]
[SourceTitle "playchess.com"]
[Source "ChessBase"]
[SourceQuality "1"]
[WhiteTeam "Slovenia"]
[BlackTeam "Turkey"]
[WhiteTeamCountry "SLO"]
[BlackTeamCountry "TUR"]
[TimeControl "40/5400+30:1800+30"]

1. d4 {[%emt 0:00:00]} d5 {[%emt 0:00:00]} 2. c4 {[%emt 0:00:00]} e6 {[%emt 0:00:00]} 3. Nc3 {[%emt 0:00:00]} Nf6 {[%emt 0:00:00]} 4. cxd5 {[%emt 0:00:00]} exd5 {[%emt 0:00:00]} 5. Bg5 {[%emt 0:00:00]} Nbd7 {[%emt 0:00:00]} 6. e3 {[%emt 0:00:14]} Be7 {[%emt 0:00:07]} 7. Bd3 {[%emt 0:00:11]} c6 {[%emt 0:00:04]} 8. Qc2 {[%emt 0:00:13]} Nh5 {[%emt 0:00:38]} 9. Bxe7 {[%emt 0:00:21]} Qxe7 {[%emt 0:00:05]} 10. Nge2 {[%emt 0:00:40]} g6 {[%emt 0:00:56]} 11. O-O {[%emt 0:05:33]} O-O {[%emt 0:00:48]} 12. Rab1 {[%emt 0:03:07]} b6 {[%emt 0:05:24]} 13. b4 {[%emt 0:03:48]} Bb7 {[%emt 0:01:38]} 14. Qd2 Rfe8 {[%emt 0:04:01]} 15. e4 {[%emt 0:11:51]} dxe4 {[%emt 0:05:16]} 16. Bxe4 {[%emt 0:01:26]} Ndf6 {[%emt 0:00:16]} 17. Bf3 {[%emt 0:04:02]} Ng7 {[%emt 0:01:38]} 18. Ng3 {[%emt 0:03:06]} Rad8 {[%emt 0:01:42]} 19. Rfe1 {[%emt 0:10:41]} Qc7 {[%emt 0:04:18]} 20. Nge4 {[%emt 0:02:04]} Nxe4 {[%emt 0:08:03]} 21. Nxe4 {[%emt 0:00:40]} Re6 {[%emt 0:08:33]} 22. Qg5 {[%emt 0:05:02]} Kh8 {[%emt 0:09:52]} 23. Nf6 {[%emt 0:04:07]} Rdd6 {[%emt 0:04:40]} 24. Rxe6 {[%emt 0:03:16]} Rxe6 {[%emt 0:00:18]} 25. Bg4 {[%emt 0:01:38]} Rd6 {[%emt 0:02:10]} 26. Qe5 {[%emt 0:02:13]} Qd8 {[%emt 0:03:16]} 27. Ne8 {[%emt 0:01:56]} Qxe8 {[%emt 0:00:27]} 28. Qxd6 {[%emt 0:00:29]} c5 {[%emt 0:00:48]} 29. Qe5 {[%emt 0:04:22]} Qxe5 {[%emt 0:01:31]} 30. dxe5 {[%emt 0:00:02]} c4 {[%emt 0:00:20]} 31. b5 {[%emt 0:01:17]} Be4 {[%emt 0:00:53]} 32. Rc1 {[%emt 0:02:12]} Bd3 {[%emt 0:00:33]} 33. f4 {[%emt 0:01:27]} h5 {[%emt 0:00:41]} 34. Bh3 {[%emt 0:03:18]} Ne8 {[%emt 0:00:48]} 35. g3 {[%emt 0:00:57]} Nc7 {[%emt 0:00:11]} 36. Bf1 {[%emt 0:00:52]} Nxb5 {[%emt 0:01:45]} 37. Bxd3 {[%emt 0:00:34]} cxd3 {[%emt 0:00:04]} 38. Rd1 {[%emt 0:00:18]} Nc3 {[%emt 0:00:52]} 39. Rxd3 {[%emt 0:00:18]} Nxa2 {[%emt 0:00:40]} 40. Ra3 {[%emt 0:00:22]} Nb4 {[%emt 0:00:26]} 41. Rxa7 {[%emt 0:30:22]} Kg8 {[%emt 0:30:08]} 42. Rb7 {[%emt 0:00:54]} Nd5 {[%emt 0:00:09]} 43. Kf2 {[%emt 0:01:12]} h4 {[%emt 0:00:03]} 44. Kf3 {[%emt 0:00:50]} hxg3 {[%emt 0:00:04]} 45. hxg3 {[%emt 0:00:12]} Kf8 {[%emt 0:00:13]} 46. Ke4 {[%emt 0:01:19]} Nc3+ {[%emt 0:00:07]} 47. Kd3 {[%emt 0:01:31]} Nd5 {[%emt 0:00:09]} 48. Kd4 {[%emt 0:00:33]} Ne7 {[%emt 0:00:17]} 49. g4 {[%emt 0:01:15]} Nc6+ {[%emt 0:00:05]} 50. Ke4 {[%emt 0:00:46]} Nd8 {[%emt 0:00:30]} 51. Rxb6 {[%emt 0:00:36]} Ne6 {[%emt 0:00:05]} 52. f5 {[%emt 0:02:20]} gxf5+ {[%emt 0:00:56]} 53. gxf5 {[%emt 0:00:56]} Nc5+ {[%emt 0:00:09]} 54. Kd5 {[%emt 0:01:03]} Nd3 {[%emt 0:00:28]} 55. Kd6 {[%emt 0:02:33]} Nf2 {[%emt 0:00:40]} 56. f6 {[%emt 0:01:22]} Kg8 {[%emt 0:00:08]} 57. Ke7 {[%emt 0:00:25]} Kh7 {[%emt 0:00:25]} 58. e6 {[%emt 0:00:28]} 1-0